[Event "Fagernes Chess GM-Swiss 2024"]
[Site "Fagernes"]
[Date "2024.03.25"]
[Round "2"]
[White "Lilliehook, Victor"]
[Black "Al-Tarboush, Ward"]
[Result "1/2-1/2"]
[ECO "B42"]
[WhiteElo "2060"]
[BlackElo "2277"]
[Annotator "RC"]
[PlyCount "162"]
[EventDate "2024.03.25"]
[EventType "swiss"]
[EventCountry "NOR"]
[SourceTitle "playchess.com"]
[Source "ChessBase"]
[SourceQuality "1"]
[TimeControl "40/6000+30:2400+30"]

1. e4 {[%emt 0:00:01]} c5 {[%emt 0:00:04]} 2. Nf3 {[%emt 0:00:07]} e6 {[%emt 0:00:02]} 3. d4 {[%emt 0:00:46]} cxd4 {[%emt 0:00:04]} 4. Nxd4 {[%emt 0:00:05]} a6 {[%emt 0:00:05]} 5. Bd3 {[%emt 0:02:49]} Ne7 {[%emt 0:00:04]} 6. c4 {[%emt 0:05:41]} Nbc6 {[%emt 0:00:24]} 7. Nc2 {[%emt 0:05:20]} g6 {[%emt 0:00:59]} 8. Nc3 {[%emt 0:01:48]} Bg7 {[%emt 0:00:08]} 9. O-O {[%emt 0:01:02]} O-O {[%emt 0:00:08]} 10. Be3 {[%emt 0:01:55]} d5 {[%emt 0:03:45]} 11. cxd5 {[%emt 0:08:16]} exd5 {[%emt 0:00:16]} 12. Bc5 {[%emt 0:01:32]} Re8 {[%emt 0:05:04]} 13. Bxe7 {[%emt 0:17:11]} Nxe7 {[%emt 0:00:41]} 14. Nxd5 {[%emt 0:05:55]} Nxd5 {[%emt 0:00:29]} 15. exd5 {[%emt 0:00:12]} Qxd5 {[%emt 0:00:33]} 16. Ne3 {[%emt 0:01:46]} Qg5 {[%emt 0:03:08]} 17. Rb1 {[%emt 0:08:50]} b5 {[%emt 0:00:45]} 18. Qf3 {[%emt 0:02:04]} Be6 {[%emt 0:04:23]} 19. b3 {[%emt 0:01:58]} Rad8 {[%emt 0:00:38]} 20. Rbd1 {[%emt 0:04:02]} h5 {[%emt 0:00:30]} 21. h3 {[%emt 0:04:43]} f5 {[%emt 0:01:53]} 22. Rfe1 {[%emt 0:04:00]} Kh7 {[%emt 0:06:16]} 23. Nf1 {[%emt 0:02:53]} Bd5 {[%emt 0:03:25]} 24. Qg3 {[%emt 0:00:44]} Qxg3 {[%emt 0:00:08]} 25. Nxg3 {[%emt 0:00:12]} Rxe1+ {[%emt 0:01:16]} 26. Rxe1 {[%emt 0:00:01]} Bxb3 {[%emt 0:08:14]} 27. Bxb5 {[%emt 0:01:56]} axb5 {[%emt 0:00:07]} 28. axb3 {[%emt 0:00:08]} Rd2 {[%emt 0:00:07]} 29. Re2 {[%emt 0:04:28]} Rd1+ {[%emt 0:00:32]} 30. Nf1 {[%emt 0:00:19]} Rb1 {[%emt 0:00:26]} 31. Re3 {[%emt 0:01:04]} b4 {[%emt 0:00:07]} 32. g4 {[%emt 0:06:29]} fxg4 {[%emt 0:07:03]} 33. hxg4 {[%emt 0:00:02]} hxg4 {[%emt 0:00:29]} 34. Kg2 {[%emt 0:02:52]} Bc3 {[%emt 0:00:09]} 35. Nh2 {[%emt 0:01:01]} Rxb3 {[%emt 0:00:34]} 36. Nxg4 {[%emt 0:00:09]} Rb1 {[%emt 0:00:19]} 37. Re7+ {[%emt 0:02:09]} Kg8 {[%emt 0:00:16]} 38. Rc7 {[%emt 0:01:05]} Rd1 {[%emt 0:01:41]} 39. Rc6 {[%emt 0:03:40]} Kf7 {[%emt 0:00:35]} 40. Ne3 {[%emt 0:06:36]} Rd2 {[%emt 0:02:11]} 41. Nc4 {[%emt 0:44:29]} Rd5 {[%emt 0:42:57]} 42. Nd6+ {[%emt 0:00:00]} Kg7 {[%emt 0:00:00]} 43. Ne4 {[%emt 0:00:00]} Rd3 {[%emt 0:00:00]} 44. Rc4 {[%emt 0:00:00]} Kf7 {[%emt 0:00:00]} 45. f3 {[%emt 0:00:00]} Be1 {[%emt 0:00:00]} 46. Kf1 {[%emt 0:00:00]} Rd1 {[%emt 0:00:00]} 47. Ke2 {[%emt 0:00:00]} Rb1 {[%emt 0:00:00]} 48. Nd2 {[%emt 0:00:00]} Bxd2 {[%emt 0:00:00]} 49. Kxd2 {[%emt 0:00:00]} Rb3 {[%emt 0:00:00]} 50. Rf4+ {[%emt 0:00:00]} Ke6 {[%emt 0:00:00]} 51. Kc2 {[%emt 0:00:22]} Ra3 {[%emt 0:00:00]} 52. Rxb4 {[%emt 0:01:49]} Rxf3 {[%emt 0:00:00]} 53. Kd2 {[%emt 0:02:17]} Kf5 {[%emt 0:00:00]} 54. Ke2 {[%emt 0:00:20]} Rf4 {[%emt 0:00:00]} 55. Rb1 {[%emt 0:00:23]} Ke4 {[%emt 0:00:00]} 56. Rg1 {[%emt 0:00:47]} Rf6 {[%emt 0:00:00]} 57. Rg4+ {[%emt 0:01:20]} Ke5 {[%emt 0:00:00]} 58. Rg3 {[%emt 0:01:07]} Ra6 {[%emt 0:00:00]} 59. Kf2 {[%emt 0:00:41]} Kf4 {[%emt 0:00:00]} 60. Rf3+ {[%emt 0:00:27]} Kg4 {[%emt 0:00:00]} 61. Rb3 {[%emt 0:00:23]} Ra2+ {[%emt 0:00:00]} 62. Kg1 {[%emt 0:00:10]} g5 {[%emt 0:00:00]} 63. Rb1 {[%emt 0:00:07]} Kh4 {[%emt 0:00:00]} 64. Rc1 {[%emt 0:00:08]} g4 {[%emt 0:00:00]} 65. Rb1 {[%emt 0:00:05]} Kh3 {[%emt 0:00:00]} 66. Rb3+ {[%emt 0:00:49]} g3 {[%emt 0:00:00]} 67. Rb1 {[%emt 0:00:04]} Rg2+ {[%emt 0:00:00]} 68. Kh1 {[%emt 0:00:04]} Rd2 {[%emt 0:00:00]} 69. Kg1 {[%emt 0:00:10]} Rd3 {[%emt 0:00:00]} 70. Ra1 {[%emt 0:00:21]} Kg4 {[%emt 0:00:00]} 71. Kg2 {[%emt 0:00:52]} Rd2+ {[%emt 0:00:00]} 72. Kg1 {[%emt 0:00:18]} Re2 {[%emt 0:00:00]} 73. Rb1 {[%emt 0:00:29]} Re3 {[%emt 0:00:00]} 74. Kg2 {[%emt 0:00:23]} Re2+ {[%emt 0:00:00]} 75. Kg1 {[%emt 0:00:04]} Kf3 {[%emt 0:00:00]} 76. Rb3+ {[%emt 0:00:09]} Re3 {[%emt 0:00:00]} 77. Rxe3+ {[%emt 0:00:13]} Kxe3 {[%emt 0:00:00]} 78. Kg2 {[%emt 0:00:07]} Kf4 {[%emt 0:00:00]} 79. Kg1 {[%emt 0:00:10]} Kf3 {[%emt 0:00:00]} 80. Kf1 {[%emt 0:00:03]} g2+ {[%emt 0:00:00]} 81. Kg1 {[%emt 0:00:04]} Kg3 {[%emt 0:00:00]} 1/2-1/2

[Event "Fagernes Chess GM-Swiss 2024"]
[Site "Fagernes"]
[Date "2024.03.25"]
[Round "2"]
[White "Shivika Rohilla"]
[Black "Prraneeth Vuppala"]
[Result "1-0"]
[ECO "A09"]
[WhiteElo "2003"]
[BlackElo "2506"]
[Annotator "TA"]
[PlyCount "75"]
[EventDate "2024.03.25"]
[EventType "swiss"]
[EventCountry "NOR"]
[SourceTitle "playchess.com"]
[Source "ChessBase"]
[SourceQuality "1"]
[TimeControl "40/6000+30:2400+30"]

{[%evp 9,75,0,9,-8,-2,-23,-14,-7,0,0,-12,-22,35,-45,0,0,-6,-14,12,0,0,0,0,0,0,0,41,39,100,14,13,0,0,-15,-25,-10,-8,-12,40,50,70,9,72,0,0,-14,0,-73,-62,-80,-50,-45,-28,-22,-25,-20,-25,-16,-25,-21,-27,-19,0,0,0,0,0,-46]} 1. Nf3 {[%emt 0:02:23]} d5 {[%emt 0:00:27]} 2. c4 {[%emt 0:00:09]} d4 {[%emt 0:00:11]} 3. b4 {[%emt 0:00:06]} Na6 {[%emt 0:00:10]} 4. Bb2 {[%emt 0:15:22]} e5 {[%emt 0:06:42]} 5. Nxe5 {[%emt 0:01:22]} Bxb4 {[%emt 0:09:17]} 6. Nf3 {[%emt 0:00:19]} c5 {[%emt 0:03:07]} 7. g3 {[%emt 0:00:25]} Nf6 {[%emt 0:04:44]} 8. Bg2 {[%emt 0:00:34]} O-O {[%emt 0:00:08]} 9. O-O {[%emt 0:00:06]} Re8 {[%emt 0:00:45]} 10. e3 {[%emt 0:04:14]} Be6 {[%emt 0:09:32]} (10... Bg4 $11) 11. Qc1 {[%emt 0:03:11]} (11. Qc2 $14) 11... Rc8 {[%emt 0:02:51]} 12. Na3 {[%emt 0:06:16]} Bxa3 {[%emt 0:22:49]} 13. Bxa3 {[%emt 0:00:08]} Qd7 {[%emt 0:01:48]} 14. Rb1 {[%emt 0:18:24]} Bf5 {[%emt 0:10:01]} 15. Rb3 {[%emt 0:00:49]} b6 {[%emt 0:00:26]} 16. exd4 {[%emt 0:06:33]} cxd4 {[%emt 0:00:09]} 17. d3 {[%emt 0:00:06] Wards off Ne4} Re2 {[%emt 0:13:13]} 18. Qf4 {[%emt 0:04:48]} Rxa2 {[%emt 0:01:11] [#]} (18... Bg6 $14) 19. Nxd4 {[%emt 0:02:02]} (19. Ne5 $1 $16 {[%cal Re5d7]} Qe6 20. Nc6 (20. Qxd4 Re8 $11) 20... Rxc6 21. Bxc6) 19... Bg6 $11 {[%emt 0:00:22]} 20. Re1 {[%emt 0:17:09]} h6 {[%emt 0:01:11]} ({Much weaker is} 20... Nc5 21. Bxc5 Rxc5 (21... bxc5 $2 22. Nc6 $18) 22. Nc6 $14) 21. Nb5 {[%emt 0:07:40]} Re8 {[%emt 0:02:56]} 22. Rxe8+ {[%emt 0:03:54]} Qxe8 {[%emt 0:00:14]} 23. Qe3 {[%emt 0:00:17]} (23. Nxa7 $2 {loses.} Qe1+ (23... Qa4 $2 24. Rb1 $19) 24. Bf1 Ra1 $19) 23... Qd7 {[%emt 0:05:08]} (23... Qxe3 $11 24. fxe3 Rd2) 24. h3 $1 $14 {[%emt 0:01:46]} Kh7 {[%emt 0:10:04]} 25. Bd6 {[%emt 0:02:15]} (25. d4 $1 $14) 25... Ne8 {[%emt 0:03:29] [#]} (25... Ra1+ $11 {keeps the balance.} 26. Kh2 Nc5 27. Bxc5 bxc5) 26. Ba3 {[%emt 0:00:48] White is more active. A strong pair of Bishops.} (26. Ra3 $1 $16 {[%cal Ra3a2]} Rxa3 27. Bxa3) 26... Nec7 {[%emt 0:01:18]} 27. d4 {[%emt 0:07:22]} Nxb5 {[%emt 0:00:31]} 28. cxb5 {[%emt 0:00:05]} (28. Rxb5 $11 Nc7 29. Re5) 28... Nc7 $17 {[%emt 0:00:17]} 29. d5 {[%emt 0:03:27]} Nxd5 {[%emt 0:01:10]} 30. Qd4 {[%emt 0:00:46]} Nf6 {[%emt 0:00:13]} (30... Qc8 {looks sharper.} 31. Bb2 Nf6 32. Rb4 Qc2) 31. Qxd7 {[%emt 0:00:13]} Nxd7 {[%emt 0:00:02]} 32. Bd6 {[%emt 0:00:42] Repels Ne5} Nc5 {[%emt 0:00:22]} 33. Bxc5 {[%emt 0:01:06]} bxc5 {[%emt 0:00:05]} 34. Rc3 {[%emt 0:00:04]} Rc2 {[%emt 0:00:29]} 35. Ra3 {[%emt 0:00:06]} Rb2 {[%emt 0:01:30] The position is equal.} 36. Bf1 {[%emt 0:01:15]} Be4 {[%emt 0:00:49]} 37. f3 {[%emt 0:00:45]} Bd5 {[%emt 0:00:42]} 38. Rc3 {[%emt 0:00:06][%mdl 32768] Weighted Error Value: White=0.18 (very precise) /Black=0.17 (very precise) .  Mistake:       	White=6     	Black=4      Inaccurate:     	---       	Black=4      OK:         	White=16    	Black=11     Best:        	White=1     	Black=1      Strong:       	White=1     	---       . Loss on time!?} (38. Rxa7 $11 c4 39. Rc7) 1-0

[Event "Fagernes Chess GM-Swiss 2024"]
[Site "Fagernes"]
[Date "2024.03.25"]
[Round "2"]
[White "Joel Paul Ganta"]
[Black "Moreby, James"]
[Result "0-1"]
[ECO "B74"]
[WhiteElo "1993"]
[BlackElo "2260"]
[Annotator "RC"]
[PlyCount "80"]
[EventDate "2024.03.25"]
[EventType "swiss"]
[EventCountry "NOR"]
[SourceTitle "playchess.com"]
[Source "ChessBase"]
[SourceQuality "1"]
[TimeControl "40/6000+30:2400+30"]

1. e4 {[%emt 0:01:45]} c5 {[%emt 0:01:40]} 2. Nf3 {[%emt 0:00:04]} d6 {[%emt 0:00:03]} 3. d4 {[%emt 0:00:03]} cxd4 {[%emt 0:00:02]} 4. Nxd4 {[%emt 0:00:03]} Nf6 {[%emt 0:00:04]} 5. Nc3 {[%emt 0:00:05]} a6 {[%emt 0:00:02]} 6. Nb3 {[%emt 0:00:03]} g6 {[%emt 0:05:53]} 7. Be2 {[%emt 0:00:41]} Bg7 {[%emt 0:00:07]} 8. O-O {[%emt 0:00:06]} O-O {[%emt 0:00:56]} 9. a4 {[%emt 0:00:37]} Nc6 {[%emt 0:09:39]} 10. Be3 {[%emt 0:01:24]} b6 {[%emt 0:01:46]} 11. Nd2 {[%emt 0:00:58]} Rb8 {[%emt 0:04:30]} 12. f4 {[%emt 0:04:54]} Bb7 {[%emt 0:07:42]} 13. Qe1 {[%emt 0:12:36]} Nb4 {[%emt 0:15:12]} 14. Qf2 {[%emt 0:00:23]} Nd7 {[%emt 0:15:22]} 15. Rfc1 {[%emt 0:01:14]} Qc7 {[%emt 0:01:10]} 16. Nc4 {[%emt 0:05:30]} Nc5 {[%emt 0:10:39]} 17. e5 {[%emt 0:01:07]} Rfc8 {[%emt 0:06:32]} 18. exd6 {[%emt 0:33:42]} exd6 {[%emt 0:00:02]} 19. f5 {[%emt 0:00:04]} Nd5 {[%emt 0:09:03]} 20. Bd4 {[%emt 0:09:20]} Nxc3 {[%emt 0:01:35]} 21. bxc3 {[%emt 0:00:24]} Ne4 {[%emt 0:04:00]} 22. Qh4 {[%emt 0:06:28]} Nxc3 {[%emt 0:03:12]} 23. Bxc3 {[%emt 0:00:03]} Bxc3 {[%emt 0:00:56]} 24. Ra3 {[%emt 0:03:25]} Re8 {[%emt 0:06:05]} 25. Bd3 {[%emt 0:12:01]} Bb2 {[%emt 0:02:11]} 26. fxg6 {[%emt 0:07:19]} fxg6 {[%emt 0:01:10]} 27. Nxb2 {[%emt 0:02:26]} Qc5+ {[%emt 0:00:09]} 28. Kh1 {[%emt 0:02:32]} Qxa3 {[%emt 0:00:05]} 29. Qf6 {[%emt 0:00:33]} Qb4 {[%emt 0:04:04]} 30. Rf1 {[%emt 0:04:31]} Rf8 {[%emt 0:01:04]} 31. Bc4+ {[%emt 0:00:40]} Qxc4 {[%emt 0:00:27]} 32. Qxf8+ {[%emt 0:00:36]} Rxf8 {[%emt 0:00:04]} 33. Rxf8+ {[%emt 0:00:03]} Kxf8 {[%emt 0:00:04]} 34. Nxc4 {[%emt 0:00:03]} Ke7 {[%emt 0:01:25]} 35. Nxb6 {[%emt 0:00:03]} d5 {[%emt 0:00:18]} 36. c4 {[%emt 0:00:15]} d4 {[%emt 0:00:37]} 37. Kg1 {[%emt 0:02:25]} Kd6 {[%emt 0:00:10]} 38. Kf2 {[%emt 0:00:30]} Kc5 {[%emt 0:00:29]} 39. a5 {[%emt 0:00:04]} Kb4 {[%emt 0:00:41]} 40. Ke2 {[%emt 0:00:58]} Kc3 {[%emt 0:00:46]} 0-1

[Event "Fagernes Chess GM-Swiss 2024"]
[Site "Fagernes"]
[Date "2024.03.25"]
[Round "2"]
[White "Thangavel, Gokul"]
[Black "Hedman, Erik"]
[Result "0-1"]
[ECO "E54"]
[WhiteElo "1990"]
[BlackElo "2311"]
[Annotator "RC"]
[PlyCount "116"]
[EventDate "2024.03.25"]
[EventType "swiss"]
[EventCountry "NOR"]
[SourceTitle "playchess.com"]
[Source "ChessBase"]
[SourceQuality "1"]
[TimeControl "40/6000+30:2400+30"]

1. d4 {[%emt 0:00:08]} Nf6 {[%emt 0:00:04]} 2. c4 {[%emt 0:00:20]} e6 {[%emt 0:00:06]} 3. Nc3 {[%emt 0:00:05]} Bb4 {[%emt 0:00:03]} 4. Nf3 {[%emt 0:00:12]} O-O {[%emt 0:00:07]} 5. e3 {[%emt 0:00:05]} d5 {[%emt 0:00:46]} 6. Bd3 {[%emt 0:00:09]} dxc4 {[%emt 0:00:40]} 7. Bxc4 {[%emt 0:00:09]} c5 {[%emt 0:00:04]} 8. O-O {[%emt 0:00:39]} cxd4 {[%emt 0:00:09]} 9. exd4 {[%emt 0:01:16]} b6 {[%emt 0:00:09]} 10. Bg5 {[%emt 0:03:46]} h6 {[%emt 0:02:00]} 11. Bh4 {[%emt 0:00:49]} Bb7 {[%emt 0:00:07]} 12. Ne5 {[%emt 0:01:13]} Nbd7 {[%emt 0:00:18]} 13. Qe2 {[%emt 1:11:02]} Nxe5 {[%emt 0:02:19]} 14. dxe5 {[%emt 0:01:11]} Qd4 {[%emt 0:00:52]} 15. Bg3 {[%emt 0:03:06]} Bxc3 {[%emt 0:07:45]} 16. bxc3 {[%emt 0:00:56]} Qe4 {[%emt 0:00:13]} 17. f3 {[%emt 0:02:43]} Qxe2 {[%emt 0:00:17]} 18. Bxe2 {[%emt 0:00:03]} Nd5 {[%emt 0:00:47]} 19. c4 {[%emt 0:00:26]} Nc3 {[%emt 0:00:36]} 20. Rf2 {[%emt 0:03:48]} Rfc8 {[%emt 0:38:46]} 21. Bf1 {[%emt 0:00:53]} Ba6 {[%emt 0:00:40]} 22. Rc1 {[%emt 0:00:38]} Nd5 {[%emt 0:02:18]} 23. Rfc2 {[%emt 0:05:18]} Ne3 {[%emt 0:03:17]} 24. Rc3 {[%emt 0:00:11]} Nxf1 {[%emt 0:00:07]} 25. Kxf1 {[%emt 0:00:04]} Rxc4 {[%emt 0:03:16]} 26. Rxc4 {[%emt 0:02:45]} Rc8 {[%emt 0:00:06]} 27. Ke1 {[%emt 0:00:23]} Bxc4 {[%emt 0:00:26]} 28. Bf2 {[%emt 0:01:29]} b5 {[%emt 0:00:31]} 29. a3 {[%emt 0:01:59]} a6 {[%emt 0:04:05]} 30. Bb6 {[%emt 0:00:57]} g5 {[%emt 0:05:07]} 31. Rc3 {[%emt 0:03:15]} Kg7 {[%emt 0:01:21]} 32. Kf2 {[%emt 0:05:19]} Kg6 {[%emt 0:00:15]} 33. Kg3 {[%emt 0:00:21]} Kf5 {[%emt 0:00:42]} 34. Re3 {[%emt 0:00:27]} Bd5 {[%emt 0:00:12]} 35. h4 {[%emt 0:00:23]} Rc2 {[%emt 0:04:23]} 36. hxg5 {[%emt 0:00:05]} hxg5 {[%emt 0:00:04]} 37. Kh3 {[%emt 0:00:59]} Kf4 {[%emt 0:00:46]} 38. g3+ {[%emt 0:00:54]} Kf5 {[%emt 0:00:05]} 39. Bd4 {[%emt 0:00:49]} Rf2 {[%emt 0:02:42]} 40. Rc3 {[%emt 0:00:44]} Rxf3 {[%emt 0:00:36]} 41. Rxf3+ {[%emt 0:40:29]} Bxf3 {[%emt 0:40:05]} 42. Bc3 {[%emt 0:00:00]} Ke4 {[%emt 0:00:00]} 43. Kh2 {[%emt 0:00:00]} Kd3 {[%emt 0:00:00]} 44. Bb4 {[%emt 0:00:00]} Kd4 {[%emt 0:00:00]} 45. Kg1 {[%emt 0:00:00]} Kxe5 {[%emt 0:00:00]} 46. Kf2 {[%emt 0:00:00]} Ke4 {[%emt 0:00:00]} 47. Be7 {[%emt 0:00:00]} g4 {[%emt 0:00:00]} 48. Bb4 {[%emt 0:00:00]} f5 {[%emt 0:00:00]} 49. Bd6 {[%emt 0:00:00]} Kd3 {[%emt 0:00:00]} 50. Bc7 {[%emt 0:00:00]} Kc4 {[%emt 0:00:00]} 51. Ke3 {[%emt 0:00:00]} Kb3 {[%emt 0:00:00]} 52. Bd6 {[%emt 0:00:00]} a5 {[%emt 0:00:00]} 53. Kd2 {[%emt 0:00:00]} b4 {[%emt 0:00:00]} 54. axb4 {[%emt 0:00:00]} a4 {[%emt 0:00:00]} 55. b5 {[%emt 0:00:00]} a3 {[%emt 0:00:00]} 56. Be5 {[%emt 0:00:00]} a2 {[%emt 0:00:00]} 57. b6 {[%emt 0:00:00]} Bd5 {[%emt 0:00:00]} 58. Kd3 {[%emt 0:00:00]} f4 {[%emt 0:00:00]} 0-1

[Event "Fagernes Chess GM-Swiss 2024"]
[Site "Fagernes"]
[Date "2024.03.25"]
[Round "2"]
[White "Gasland, Lukas Dominik"]
[Black "Rasmussen, Casper"]
[Result "1/2-1/2"]
[ECO "D12"]
[WhiteElo "1985"]
[BlackElo "2244"]
[Annotator "RC"]
[PlyCount "174"]
[EventDate "2024.03.25"]
[EventType "swiss"]
[EventCountry "NOR"]
[SourceTitle "playchess.com"]
[Source "ChessBase"]
[SourceQuality "1"]
[TimeControl "40/6000+30:2400+30"]

1. d4 {[%emt 0:00:16]} d5 {[%emt 0:00:06]} 2. c4 {[%emt 0:00:09]} c6 {[%emt 0:00:02]} 3. Nc3 {[%emt 0:00:26]} Nf6 {[%emt 0:00:08]} 4. e3 {[%emt 0:00:28]} Bf5 {[%emt 0:00:57]} 5. Qb3 {[%emt 0:02:05]} Qb6 {[%emt 0:01:55]} 6. Nf3 {[%emt 0:06:07]} e6 {[%emt 0:10:31]} 7. c5 {[%emt 0:15:50]} Qc7 {[%emt 0:06:36]} 8. Qa4 {[%emt 0:04:46]} Be7 {[%emt 0:01:39]} 9. b4 {[%emt 0:01:46]} O-O {[%emt 0:00:51]} 10. Be2 {[%emt 0:02:40]} Nbd7 {[%emt 0:02:42]} 11. b5 {[%emt 0:04:07]} cxb5 {[%emt 0:08:39]} 12. Nxb5 {[%emt 0:02:49]} Qc6 {[%emt 0:00:48]} 13. Qb3 {[%emt 0:06:19]} Rfc8 {[%emt 0:06:37]} 14. O-O {[%emt 0:06:02]} b6 {[%emt 0:11:29]} 15. cxb6 {[%emt 0:04:16]} Bc2 {[%emt 0:01:41]} 16. Qb2 {[%emt 0:01:44]} Qxb6 {[%emt 0:06:30]} 17. a4 {[%emt 0:10:17]} Rab8 {[%emt 0:10:47]} 18. a5 {[%emt 0:03:33]} Qd8 {[%emt 0:00:31]} 19. a6 {[%emt 0:01:10]} Bg6 {[%emt 0:02:43]} 20. Bd2 {[%emt 0:02:18]} Nb6 {[%emt 0:07:02]} 21. Nxa7 {[%emt 0:10:51]} Rc2 {[%emt 0:04:51]} 22. Qb5 {[%emt 0:02:25]} Qc7 {[%emt 0:03:59]} 23. Bd3 {[%emt 0:04:04]} Rxd2 {[%emt 0:03:22]} 24. Nxd2 {[%emt 0:00:20]} Qxa7 {[%emt 0:00:03]} 25. Bxg6 {[%emt 0:02:59]} hxg6 {[%emt 0:00:02]} 26. Rfb1 {[%emt 0:02:48]} Nfd7 {[%emt 0:03:19]} 27. Qa5 {[%emt 0:02:22]} f6 {[%emt 0:06:04]} 28. Rb5 {[%emt 0:02:24]} Kf7 {[%emt 0:00:00]} 29. Rab1 {[%emt 0:00:10]} Bd6 {[%emt 0:00:00]} 30. e4 {[%emt 0:01:55]} Bf4 {[%emt 0:01:40]} 31. exd5 {[%emt 0:01:03]} exd5 {[%emt 0:04:03]} 32. Re1 {[%emt 0:02:34]} Bxd2 {[%emt 0:01:26]} 33. Qxd2 {[%emt 0:00:06]} Qxa6 {[%emt 0:02:50]} 34. Qe2 {[%emt 0:01:22]} Nf8 {[%emt 0:01:52]} 35. Qe7+ {[%emt 0:01:51]} Kg8 {[%emt 0:00:01]} 36. Rc5 {[%emt 0:00:49]} Rc8 {[%emt 0:01:59]} 37. h4 {[%emt 0:00:48]} Rxc5 {[%emt 0:00:39]} 38. dxc5 {[%emt 0:00:35]} Nbd7 {[%emt 0:00:08]} 39. Qd8 {[%emt 0:00:56]} Qc6 {[%emt 0:00:37]} 40. Re8 {[%emt 0:00:57]} d4 {[%emt 0:00:45]} 41. Qc8 {[%emt 0:41:26]} Qxc8 {[%emt 0:17:56]} 42. Rxc8 {[%emt 0:00:00]} Kf7 {[%emt 0:00:16]} 43. c6 {[%emt 0:00:00]} Nb6 {[%emt 0:00:21]} 44. Rb8 {[%emt 0:00:00]} Nd5 {[%emt 0:01:37]} 45. Rb7+ {[%emt 0:00:00]} Ke6 {[%emt 0:05:43]} 46. c7 {[%emt 0:00:00]} Kd7 {[%emt 0:00:06]} 47. Rb8 {[%emt 0:00:00]} Kxc7 {[%emt 0:01:20]} 48. Rxf8 {[%emt 0:00:00]} d3 {[%emt 0:00:09]} 49. Kf1 {[%emt 0:00:00]} d2 {[%emt 0:01:57]} 50. Ke2 {[%emt 0:00:00]} Nf4+ {[%emt 0:00:05]} 51. Kxd2 {[%emt 0:00:00]} Nxg2 {[%emt 0:00:02]} 52. Rh8 {[%emt 0:00:00]} Kd6 {[%emt 0:02:04]} 53. Ke2 {[%emt 0:00:00]} Nf4+ {[%emt 0:03:11]} 54. Kf3 {[%emt 0:00:00]} Ne6 {[%emt 0:01:37]} 55. Ra8 {[%emt 0:00:00]} f5 {[%emt 0:00:47]} 56. Kg3 {[%emt 0:00:00]} Ke5 {[%emt 0:00:26]} 57. Ra6 {[%emt 0:00:00]} Kf6 {[%emt 0:01:26]} 58. Kf3 {[%emt 0:00:00]} Kf7 {[%emt 0:02:03]} 59. Ke3 {[%emt 0:00:00]} Kf6 {[%emt 0:00:58]} 60. f4 {[%emt 0:00:00]} Kf7 {[%emt 0:00:08]} 61. Rb6 {[%emt 0:00:00]} Ke7 {[%emt 0:00:43]} 62. Rb1 {[%emt 0:00:00]} Kf6 {[%emt 0:00:35]} 63. Rf1 {[%emt 0:00:00]} Kf7 {[%emt 0:01:09]} 64. Kd3 {[%emt 0:00:00]} Ke7 {[%emt 0:00:53]} 65. Kc4 {[%emt 0:00:00]} Kd6 {[%emt 0:00:01]} 66. Kd3 {[%emt 0:00:00]} Ke7 {[%emt 0:00:04]} 67. Ke3 {[%emt 0:00:00]} Kf6 {[%emt 0:00:21]} 68. Rb1 {[%emt 0:00:00]} Kf7 {[%emt 0:00:15]} 69. Rb4 {[%emt 0:00:00]} Kf6 {[%emt 0:01:42]} 70. Rc4 {[%emt 0:00:00]} Kf7 {[%emt 0:00:24]} 71. Kd3 {[%emt 0:00:00]} Kg8 {[%emt 0:00:44]} 72. Rc8+ {[%emt 0:00:00]} Kf7 {[%emt 0:00:37]} 73. Ke3 {[%emt 0:00:00]} Ke7 {[%emt 0:00:43]} 74. Ra8 {[%emt 0:00:00]} Kf7 {[%emt 0:00:29]} 75. Ra7+ {[%emt 0:00:00]} Kf8 {[%emt 0:01:53]} 76. Rd7 {[%emt 0:00:00]} Ke8 {[%emt 0:00:17]} 77. Rd5 {[%emt 0:00:00]} Kf7 {[%emt 0:00:17]} 78. h5 {[%emt 0:00:32]} Kf6 {[%emt 0:01:16]} 79. hxg6 {[%emt 0:00:24]} Kxg6 {[%emt 0:00:02]} 80. Rd1 {[%emt 0:00:17]} Kf6 {[%emt 0:00:09]} 81. Rd6 {[%emt 0:00:20]} g5 {[%emt 0:02:46]} 82. fxg5+ {[%emt 0:01:37]} Ke5 {[%emt 0:00:02]} 83. Rxe6+ {[%emt 0:00:21]} Kxe6 {[%emt 0:00:01]} 84. Kf4 {[%emt 0:00:11]} Kf7 {[%emt 0:00:06]} 85. Kxf5 {[%emt 0:00:27]} Kg7 {[%emt 0:00:01]} 86. g6 {[%emt 0:00:41]} Kg8 {[%emt 0:00:02]} 87. g7 {[%emt 0:00:27]} Kxg7 {[%emt 0:00:34]} 1/2-1/2

[Event "Fagernes Chess GM-Swiss 2024"]
[Site "Fagernes"]
[Date "2024.03.25"]
[Round "2"]
[White "Stark, John"]
[Black "Myagmarsuren, Evsuld"]
[Result "1-0"]
[ECO "D11"]
[WhiteElo "1947"]
[BlackElo "2138"]
[Annotator "RC"]
[PlyCount "73"]
[EventDate "2024.03.25"]
[EventType "swiss"]
[EventCountry "NOR"]
[SourceTitle "playchess.com"]
[Source "ChessBase"]
[SourceQuality "1"]
[TimeControl "40/6000+30:2400+30"]

1. c4 {[%emt 0:00:18]} c6 {[%emt 0:00:16]} 2. Nf3 {[%emt 0:00:13]} d5 {[%emt 0:00:07]} 3. d4 {[%emt 0:00:00]} Nf6 {[%emt 0:00:07]} 4. g3 {[%emt 0:00:00]} Bg4 {[%emt 0:01:02]} 5. Ne5 {[%emt 0:02:59]} Be6 {[%emt 0:03:38]} 6. Nc3 {[%emt 0:04:39]} dxc4 {[%emt 0:01:05]} 7. e4 {[%emt 0:02:02]} b5 {[%emt 0:03:29]} 8. Bg2 {[%emt 0:02:06]} Nfd7 {[%emt 0:04:42]} 9. f4 {[%emt 0:06:34]} Nxe5 {[%emt 0:01:35]} 10. fxe5 {[%emt 0:00:08]} Bc8 {[%emt 0:03:52]} 11. O-O {[%emt 0:05:58]} e6 {[%emt 0:01:06]} 12. Qf3 {[%emt 0:24:07]} Qxd4+ {[%emt 0:02:34]} 13. Be3 {[%emt 0:00:05]} Qd7 {[%emt 0:00:08]} 14. Rad1 {[%emt 0:00:06]} Qc7 {[%emt 0:00:05]} 15. Kh1 {[%emt 0:05:43]} Bb4 {[%emt 0:01:14]} 16. a3 {[%emt 0:08:30]} Bxc3 {[%emt 0:00:05]} 17. bxc3 {[%emt 0:00:02]} Na6 {[%emt 0:00:08]} 18. Bg5 {[%emt 0:05:30]} O-O {[%emt 0:01:16]} 19. Bd8 {[%emt 0:00:58]} Qb7 {[%emt 0:01:26]} 20. Qg4 {[%emt 0:01:33]} f5 {[%emt 0:15:36]} 21. exf6 {[%emt 0:00:42]} e5 {[%emt 0:00:23]} 22. Qg5 {[%emt 0:02:37]} Qf7 {[%emt 0:03:14]} 23. fxg7 {[%emt 0:07:24]} Qxg7 {[%emt 0:02:18]} 24. Rxf8+ {[%emt 0:00:18]} Kxf8 {[%emt 0:00:08]} 25. Be7+ {[%emt 0:00:46]} Kg8 {[%emt 0:06:33]} 26. Rd8+ {[%emt 0:00:30]} Kf7 {[%emt 0:00:05]} 27. Rf8+ {[%emt 0:01:09]} Qxf8 {[%emt 0:00:07]} 28. Bxf8 {[%emt 0:00:05]} Kxf8 {[%emt 0:00:05]} 29. Qf6+ {[%emt 0:01:07]} Kg8 {[%emt 0:00:25]} 30. Qd8+ {[%emt 0:00:46]} Kf7 {[%emt 0:00:10]} 31. Bh3 {[%emt 0:01:51]} Bxh3 {[%emt 0:00:44]} 32. Qxa8 {[%emt 0:00:05]} Nc5 {[%emt 0:00:46]} 33. Qxc6 {[%emt 0:02:13]} Nd3 {[%emt 0:00:05]} 34. Qh6 {[%emt 0:02:24]} Bg4 {[%emt 0:01:58]} 35. Qxh7+ {[%emt 0:00:03]} Kf6 {[%emt 0:00:16]} 36. Kg1 {[%emt 0:02:08]} Bf3 {[%emt 0:01:46]} 37. Qf5+ {[%emt 0:00:15]} 1-0